bitfinex-derivatives/quotes_BNBF0:USTF0_20251010
["timestamp","ask_amount","ask_price","bid_price","bid_amount"]
[1760121462779,1.20578022,1233.8,1231.4,0.5162842]
[1760121462978,1.20578022,1233.8,1231.5,0.5162842]
[1760121463179,1.20578022,1233.8,1231.6,0.5162842]
[1760121463379,1.20578022,1233.8,1231.7,0.5162842]
[1760121463578,1.20578022,1233.8,1231.1,0.59892575]
[1760121463779,1.20578022,1233.7,1231.2,0.5162194]
[1760121463980,1.20578022,1233.7,1231.3,0.5162194]
[1760121464180,1.20578022,1233.7,1231.1,0.59892575]
[1760121464181,1.20578022,1233.7,1231.4,0.5162194]
[1760121464378,1.20578022,1233.7,1231.5,0.5162194]
[1760121464577,1.20578022,1233.7,1231.6,0.5162194]
[1760121464781,1.20578022,1233.7,1231.7,0.5162194]
[1760121465083,1.20578022,1233.7,1231.1,0.59892575]
[1760121465386,1.20578022,1233.7,1231.2,0.51588333]
[1760121465577,1.20578022,1233.7,1231.3,0.51588333]
[1760121465781,1.20578022,1233.7,1231.4,0.51588333]
[1760121465981,1.20578022,1233.7,1231.5,0.51588333]
[1760121466177,1.34688199,1233.9,1231.6,0.51588333]
[1760121466480,1.34688199,1233.9,1231.7,0.51588333]
[1760121466681,1.34688199,1233.9,1231.8,0.51588333]
[1760121466877,1.34688199,1233.9,1231.3,0.59892575]
[1760121467079,1.34688199,1233.9,1231.4,0.51570328]
[1760121467279,1.34688199,1233.9,1231.5,0.51570328]
[1760121467478,1.34688199,1233.9,1231.6,0.51570328]
[1760121467682,1.34688199,1233.9,1231.7,0.51570328]
[1760121467878,1.34688199,1233.9,1231.8,0.51570328]
[1760121468182,1.34688199,1233.9,1231.9,0.51578669]
[1760121468381,0.14110177,1233.9,1231.3,0.59892575]
[1760121468682,0.14110177,1233.9,1231.4,0.51570978]
[1760121468877,0.14110177,1233.9,1231.5,0.51570978]
[1760121469081,0.14110177,1233.9,1231.6,0.51570978]
[1760121469277,0.14110177,1233.9,1231.7,0.51570978]
[1760121469477,0.14110177,1233.9,1231.8,0.51570978]
[1760121469683,0.14110177,1233.9,1231.9,0.51570978]
[1760121469881,0.14110177,1233.9,1232.0,0.51570978]
[1760121470078,0.14110177,1233.9,1231.3,0.59892575]
[1760121470280,0.14110177,1233.9,1231.4,0.515828]
[1760121470578,0.14110177,1233.9,1231.5,0.515828]
[1760121470878,0.14110177,1233.9,1231.6,0.515828]
[1760121471079,0.14110177,1233.9,1231.7,0.515828]
[1760121471278,0.14110177,1233.9,1231.8,0.515828]
[1760121471484,0.14110177,1233.9,1231.9,0.515828]
[1760121471681,1.20578022,1233.8,1231.2,0.59892575]
[1760121471981,1.20578022,1233.5,1231.3,1.11497392]
[1760121472180,1.20578022,1233.4,1231.4,0.51604817]
[1760121472380,1.20578022,1233.4,1231.5,0.51604817]
[1760121472584,1.20578022,1233.4,1231.6,0.51604817]
[1760121472780,1.20578022,1233.4,1231.7,0.51604817]
[1760121472985,1.20578022,1233.4,1231.3,0.59892575]
[1760121473185,1.20578022,1233.4,1231.4,0.51594229]
[1760121473485,1.20578022,1233.4,1231.5,0.51594229]
[1760121473687,1.20578022,1233.4,1231.6,0.51594229]
[1760121473886,1.20578022,1233.4,1231.1,0.59892575]
[1760121474082,1.20578022,1233.4,1231.2,0.51603126]
[1760121474386,1.20578022,1233.4,1231.3,0.51603126]
[1760121474687,1.20578022,1233.4,1231.4,0.51603126]
[1760121474886,1.20578022,1233.4,1231.5,0.51603126]
[1760121475086,1.20578022,1233.4,1231.6,0.51603126]
[1760121475384,1.20578022,1233.3,1231.0,0.59892575]
[1760121475590,1.20578022,1233.3,1231.1,0.51628965]
[1760121475885,1.20578022,1233.3,1231.2,0.51628965]
[1760121476086,1.20578022,1233.3,1231.3,0.51628965]
[1760121476386,1.20578022,1233.2,1231.4,0.51628965]
[1760121476585,1.20578022,1233.2,1231.0,0.59892575]
[1760121476890,1.20578022,1233.2,1231.1,0.51627572]
[1760121477187,1.20578022,1233.1,1231.2,0.51627572]
[1760121477387,1.20578022,1233.2,1231.3,0.51627572]
[1760121477588,1.20578022,1233.2,1231.4,0.51627572]
[1760121477787,1.20578022,1233.2,1231.0,0.59892575]
[1760121477988,1.20578022,1233.2,1231.1,0.51639366]
[1760121478181,1.20578022,1233.2,1231.2,0.51639366]
[1760121478482,1.20578022,1233.2,1231.3,0.51639366]
[1760121478686,1.20578022,1233.2,1231.4,0.51639366]
[1760121478982,1.20578022,1233.2,1231.0,0.59892575]
[1760121479182,1.20578022,1233.2,1231.1,0.51640174]
[1760121479387,1.20578022,1233.2,1231.2,0.51640174]
[1760121479591,1.20578022,1233.2,1231.3,0.51640174]
[1760121479782,1.20578022,1233.2,1231.4,0.51640174]
[1760121479983,1.20578022,1233.2,1231.0,0.59892575]
[1760121480284,1.20578022,1233.2,1231.1,0.51644393]
[1760121480489,1.20578022,1233.2,1231.2,0.51644393]
[1760121480689,1.20578022,1233.2,1231.3,0.51644393]
[1760121480890,1.20578022,1233.2,1231.4,0.51644393]
[1760121481190,1.20578022,1233.2,1231.0,0.59892575]
[1760121481487,1.20578022,1233.2,1231.1,0.52185714]
[1760121481690,1.20578022,1233.2,1231.2,0.52185714]
[1760121481891,1.20578022,1233.2,1231.3,0.52185714]
[1760121482089,1.20578022,1233.2,1231.4,0.52185714]
[1760121482291,1.20578022,1233.2,1230.9,0.7400733]
[1760121482488,1.20578022,1233.2,1231.0,0.52191341]
[1760121482791,1.20578022,1233.2,1231.1,0.52191341]
[1760121483092,1.20578022,1233.2,1231.2,0.52191341]
[1760121483292,1.20578022,1233.2,1231.3,0.52191341]
[1760121483488,1.20578022,1233.2,1231.4,0.52191341]
[1760121483689,1.20578022,1233.2,1230.9,0.7400733]
[1760121483888,1.20578022,1233.3,1231.0,0.52202268]
[1760121484089,1.20578022,1233.3,1231.1,0.52202268]
[1760121484289,1.20578022,1233.3,1231.2,0.52202268]
[1760121484497,0.14110177,1233.9,1230.7,0.59892575]
[1760121484498,1.20578022,1232.8,1230.7,0.59892575]
[1760121484694,1.20578022,1232.6,1230.8,0.52262741]
[1760121484891,1.20578022,1232.5,1230.4,0.74018503]
[1760121485094,1.20578022,1232.7,1230.5,0.52296613]
[1760121485297,1.20578022,1232.6,1230.6,0.52296613]
[1760121485593,1.20578022,1232.7,1230.7,0.52296613]
[1760121485797,1.20578022,1232.7,1230.8,0.52296613]
[1760121485994,1.20578022,1232.7,1230.4,0.14125928]
[1760121486192,1.20578022,1232.8,1230.5,0.52270547]
[1760121486397,1.20578022,1232.8,1230.6,0.52270547]
[1760121486597,1.20578022,1232.9,1230.7,0.52270547]
[1760121486796,1.20578022,1232.9,1230.8,0.52270547]
[1760121487094,1.20578022,1233.1,1230.9,0.52270547]
[1760121487410,1.20578022,1233.1,1230.4,0.74018503]
[1760121487595,1.20578022,1233.0,1230.5,0.5221724]
[1760121487897,1.20578022,1233.0,1230.6,0.5221724]
[1760121488097,1.20578022,1233.0,1230.7,0.5221724]
[1760121488295,1.20578022,1233.1,1230.8,0.5221724]
[1760121488495,1.20578022,1233.0,1230.9,0.5221724]
[1760121488696,1.20578022,1233.0,1230.4,0.74018503]
[1760121488898,1.20578022,1233.0,1230.5,0.52177316]
[1760121489096,1.20578022,1233.0,1230.6,0.52177316]
[1760121489296,1.20578022,1233.0,1230.7,0.52177316]
[1760121489498,1.20578022,1233.0,1230.8,0.52177316]
[1760121489695,1.20578022,1233.0,1230.9,0.52177316]
[1760121489895,1.20578022,1233.0,1230.4,0.74018503]
[1760121490199,1.20578022,1233.0,1230.5,0.52163458]
[1760121490400,1.20578022,1233.0,1230.6,0.52163458]
[1760121490597,1.20578022,1233.0,1230.7,0.52163458]
[1760121490801,1.20578022,1233.0,1230.8,0.52163458]
[1760121490998,1.20578022,1233.0,1230.9,0.52163458]
[1760121491198,1.20578022,1233.0,1230.4,0.74018503]
[1760121491397,1.20578022,1233.1,1230.5,0.52144069]
[1760121491598,1.20578022,1232.8,1230.6,0.52144069]
[1760121491896,1.20578022,1232.8,1230.7,0.52144069]
[1760121492100,1.20578022,1232.8,1230.3,0.59892575]
[1760121492297,1.20578022,1232.8,1230.4,0.52156918]
[1760121492500,1.20578022,1233.0,1230.5,0.52156918]
[1760121492801,1.20578022,1233.3,1230.6,0.52156918]
[1760121493096,1.20578022,1233.3,1230.7,0.52156918]
[1760121493401,1.20578022,1233.4,1230.8,0.52156918]
[1760121493596,1.20578022,1233.4,1230.1,0.74023321]
[1760121493798,1.20578022,1233.4,1230.2,0.52128849]
[1760121493996,1.20578022,1233.4,1230.3,0.52128849]
[1760121494196,1.20578022,1233.4,1230.4,0.52128849]
[1760121494398,1.20578022,1233.4,1230.5,0.52128849]
[1760121494598,1.20578022,1233.4,1230.6,0.52128849]
[1760121494796,1.20578022,1233.4,1230.7,0.52128849]
[1760121494996,1.20578022,1233.4,1230.1,0.74023321]
[1760121494997,1.20578022,1233.4,1230.8,0.52128849]
[1760121495202,1.20578022,1233.4,1230.1,0.74023321]
[1760121495402,1.20578022,1233.4,1230.2,0.52110869]
[1760121495601,1.20578022,1233.4,1230.3,0.52110869]
[1760121495902,1.20578022,1233.4,1230.4,0.52110869]
[1760121496202,1.20578022,1233.3,1230.5,0.52110869]
[1760121496401,1.20578022,1233.4,1230.6,0.52110869]
[1760121496597,1.20578022,1233.4,1230.7,0.52110869]
[1760121496803,1.20578022,1233.4,1230.1,0.14130746]
[1760121497102,1.20578022,1233.3,1230.2,0.52105366]
[1760121497302,1.20578022,1233.4,1230.3,0.52105366]
[1760121497498,1.20578022,1233.4,1230.4,0.52105366]
[1760121497797,1.20578022,1233.4,1230.5,0.52105366]
[1760121498000,1.20578022,1233.4,1230.6,0.52105366]
[1760121498198,1.20578022,1233.3,1230.7,0.52105366]
[1760121498401,1.20578022,1233.4,1230.1,0.14130746]
[1760121498600,1.20578022,1233.4,1230.2,0.52106863]
[1760121498801,1.20578022,1233.4,1230.3,0.52106863]
[1760121499002,1.20578022,1233.4,1230.1,0.14130746]
[1760121499003,1.20578022,1233.0,1230.4,0.52106863]
[1760121499199,1.20578022,1233.0,1230.5,0.52106863]
[1760121499400,1.20578022,1233.0,1230.6,0.52106863]
[1760121499599,1.20578022,1233.0,1230.1,0.74023321]
[1760121499903,1.20578022,1233.0,1230.2,0.52094525]
[1760121500102,1.20578022,1233.1,1230.3,0.52094525]
[1760121500303,1.20578022,1233.2,1230.4,0.52094525]
[1760121500503,1.20578022,1233.2,1230.5,0.52094525]
[1760121500698,1.20578022,1233.2,1230.6,0.52094525]
[1760121500899,1.20578022,1233.2,1230.7,0.52094525]
[1760121501100,1.20578022,1233.3,1230.8,0.52094525]
[1760121501299,1.20578022,1233.3,1230.9,0.52094525]
[1760121501502,1.20578022,1233.3,1231.0,0.52094525]
[1760121501700,1.20578022,1233.3,1230.5,0.59892575]
[1760121501900,1.20578022,1233.3,1230.7,0.59892575]
[1760121502101,1.20578022,1233.3,1230.8,0.52055388]
[1760121502300,1.20578022,1233.3,1230.9,0.52055388]
[1760121502501,1.20578022,1233.3,1231.0,0.52055388]
[1760121502701,1.20578022,1233.3,1231.1,0.52055388]
[1760121502901,1.20578022,1233.3,1230.7,0.59892575]
[1760121503103,1.20578022,1233.3,1230.8,0.52040185]
[1760121503305,1.20578022,1233.3,1230.9,0.52040185]
[1760121503604,1.20578022,1233.4,1231.0,0.52040185]
[1760121503804,1.20578022,1233.4,1231.1,0.52040185]
[1760121504004,1.20578022,1233.4,1230.6,0.59892575]
[1760121504203,1.20578022,1233.4,1230.7,1.11931253]
[1760121504405,1.20578022,1233.4,1230.8,0.52038678]
[1760121504606,1.20578022,1233.4,1230.9,0.52038678]
[1760121504805,1.20578022,1233.4,1231.0,0.52038678]
[1760121505004,1.20578022,1233.4,1231.1,0.52038678]
[1760121505202,1.20578022,1233.4,1230.7,0.59892575]
[1760121505405,1.20578022,1233.4,1230.8,0.52046121]
[1760121505701,1.20578022,1233.4,1230.9,0.52046121]
[1760121505905,1.20578022,1233.6,1231.0,0.52046121]
[1760121506103,1.20578022,1233.6,1231.1,0.52046121]
[1760121506303,0.14110177,1233.9,1230.5,0.80786749]
[1760121506304,1.20578022,1233.4,1230.5,0.59892575]
[1760121506503,1.20578022,1233.5,1230.6,1.11927536]
[1760121506805,1.20578022,1233.6,1230.7,0.52034961]
[1760121507004,1.20578022,1233.6,1230.8,0.52034961]
[1760121507207,1.20578022,1233.6,1230.9,0.52034961]
[1760121507410,1.20578022,1233.6,1231.0,0.52034961]
[1760121507610,1.20578022,1233.6,1231.1,0.52034961]
[1760121507811,1.20578022,1233.5,1231.2,0.52034961]
[1760121508107,1.20578022,1233.6,1231.3,0.52034961]
[1760121508407,1.20578022,1233.6,1231.4,0.52034961]
[1760121508706,1.20578022,1233.7,1230.9,0.59892575]
[1760121508906,1.34688199,1233.9,1231.1,0.59892575]
[1760121509104,1.34688199,1233.9,1231.2,0.51964698]
[1760121509402,1.34688199,1233.9,1231.3,0.51964698]
[1760121509606,1.34688199,1233.9,1231.4,0.51964698]
[1760121509806,1.34688199,1233.9,1231.5,0.51964698]
[1760121510004,1.34688199,1233.9,1231.6,0.51964698]
[1760121510206,1.34688199,1233.9,1231.2,0.59892575]
[1760121510406,1.34688199,1233.9,1231.3,0.51954726]
[1760121510607,1.34688199,1233.9,1231.4,0.51954726]
[1760121510805,1.34688199,1233.9,1231.5,0.51954726]
[1760121511104,1.34688199,1233.9,1231.6,0.51954726]
[1760121511309,1.34688199,1233.9,1231.2,0.59892575]
[1760121511503,1.34688199,1233.9,1231.3,0.51966343]
[1760121511709,1.34688199,1233.9,1231.4,0.51966343]
[1760121511907,1.34688199,1233.9,1231.5,0.51966343]
[1760121512106,1.20578022,1233.8,1230.8,0.59892575]
[1760121512309,1.20578022,1233.8,1230.9,1.11893477]
[1760121512507,1.34688199,1233.9,1231.0,0.52000902]
[1760121512710,1.34688199,1233.9,1231.1,0.52000902]
[1760121512911,1.34688199,1233.9,1231.2,0.52000902]
[1760121513109,1.34688199,1233.9,1231.3,0.52000902]
[1760121513309,1.20578022,1233.6,1231.4,0.52000902]
[1760121513513,1.20578022,1233.6,1231.0,0.59892575]
[1760121513711,1.20578022,1233.6,1231.1,0.52004885]
[1760121514011,1.20578022,1233.7,1231.2,0.52004885]
[1760121514208,1.20578022,1233.7,1231.3,0.52004885]
[1760121514412,1.20578022,1233.7,1231.4,0.52004885]
[1760121514611,1.34688199,1233.9,1231.5,0.52004885]
[1760121514809,0.14110177,1233.9,1231.6,0.52004885]
[1760121515008,0.14110177,1233.9,1231.2,0.59892575]
[1760121515209,0.14110177,1233.9,1231.3,0.51986852]
[1760121515408,0.14110177,1233.9,1231.4,0.51986852]
[1760121515614,0.14110177,1233.9,1231.5,0.51986852]
[1760121515916,0.14110177,1233.9,1231.6,0.51986852]
[1760121516114,0.14110177,1233.9,1231.2,0.59892575]
[1760121516312,0.14110177,1233.9,1231.3,1.1188095]
[1760121516512,0.14110177,1233.9,1231.4,0.51988375]
[1760121516712,0.14110177,1233.9,1231.5,0.51988375]
[1760121516911,0.14110177,1233.9,1231.6,0.51988375]
[1760121517110,0.14110177,1233.9,1231.7,0.51988375]
[1760121517314,0.14110177,1233.9,1231.8,0.51988375]
[1760121517615,0.14110177,1233.9,1231.3,0.59892575]
[1760121517813,0.14110177,1233.9,1231.4,0.5199734]
[1760121518012,0.14110177,1233.9,1231.5,0.5199734]
[1760121518211,0.14110177,1233.9,1231.6,0.5199734]
[1760121518416,0.14110177,1233.9,1231.7,0.5199734]
[1760121518614,0.14110177,1233.9,1231.8,0.5199734]
[1760121518817,0.14110177,1233.9,1231.3,0.59892575]
[1760121519020,0.14110177,1233.9,1231.4,0.51999765]
[1760121519316,0.14110177,1233.9,1231.5,0.51999765]
[1760121519616,0.14110177,1233.9,1231.6,0.51999765]
[1760121519816,0.14110177,1233.9,1231.7,0.51999765]
[1760121520013,0.14110177,1233.9,1231.8,0.51999765]
[1760121520212,0.14110177,1233.9,1231.3,0.59892575]
[1760121520412,0.14110177,1233.9,1230.1,0.14130746]
[1760121520413,0.14110177,1233.9,1231.4,0.52023216]
[1760121520614,0.14110177,1233.9,1231.5,0.52023216]
[1760121520813,0.14110177,1233.9,1231.1,0.59892575]
[1760121520814,0.14110177,1233.9,1231.6,0.52023216]
[1760121521014,0.14110177,1233.9,1231.1,0.59892575]
[1760121521215,0.14110177,1233.9,1231.2,0.52040915]
[1760121521415,0.14110177,1233.9,1231.3,0.52040915]
[1760121521618,0.14110177,1233.9,1231.4,0.52040915]
[1760121521915,0.14110177,1233.9,1231.5,0.52040915]
[1760121522114,0.14110177,1233.9,1231.6,0.52040915]
[1760121522420,0.14110177,1233.9,1231.7,0.52040915]
[1760121522617,0.14110177,1233.9,1231.1,0.59892575]
[1760121522916,0.14110177,1233.9,1231.2,0.52042512]
[1760121523216,0.14110177,1233.9,1231.3,0.52042512]
[1760121523418,0.14110177,1233.9,1231.4,0.52042512]
[1760121523620,0.14110177,1233.9,1231.5,0.52042512]
[1760121523815,0.14110177,1233.9,1231.6,0.52042512]
[1760121524017,0.14110177,1233.9,1231.1,0.59892575]
[1760121524216,0.14110177,1233.9,1231.2,0.52044703]
[1760121524417,0.14110177,1233.9,1231.3,0.52044703]
[1760121524619,0.14110177,1233.9,1231.4,0.52044703]
[1760121524818,0.14110177,1233.9,1231.5,0.52044703]
[1760121525016,0.14110177,1233.9,1231.1,0.59892575]
[1760121525017,0.14110177,1233.9,1231.6,0.52044703]
[1760121525218,0.14110177,1233.9,1231.7,0.52044703]
[1760121525520,0.14110177,1233.9,1231.1,0.59892575]
[1760121525720,0.14110177,1233.9,1231.2,0.52020307]
[1760121525917,1.20578022,1233.6,1231.3,0.52020307]
[1760121526119,1.20578022,1233.5,1230.7,0.59892575]
[1760121526320,1.20578022,1233.6,1230.8,1.11960491]
[1760121526520,1.20578022,1233.6,1230.9,0.52067916]
[1760121526720,1.20578022,1233.6,1231.0,0.52067916]
[1760121526920,1.20578022,1233.6,1231.1,0.52067916]
[1760121527120,1.20578022,1233.6,1231.2,0.52067916]
[1760121527316,1.20578022,1233.6,1231.3,0.52067916]
[1760121527516,1.20578022,1233.6,1230.8,0.59892575]
[1760121527721,1.20578022,1233.6,1230.9,0.52077861]
[1760121527916,1.20578022,1233.6,1231.0,0.52077861]
[1760121528116,1.20578022,1233.6,1231.1,0.52077861]
[1760121528321,1.20578022,1233.6,1231.2,0.52077861]
[1760121528518,1.20578022,1233.6,1231.3,0.52077861]
[1760121528821,1.20578022,1233.6,1230.8,0.59892575]
[1760121529021,1.20578022,1233.6,1230.9,0.52096484]
[1760121529225,1.20578022,1233.5,1231.0,0.52096484]
[1760121529423,1.20578022,1233.5,1231.1,0.52096484]
[1760121529622,1.20578022,1233.5,1231.2,0.52096484]
[1760121529822,1.20578022,1233.5,1231.3,0.52096484]
[1760121530118,1.20578022,1233.4,1230.7,0.59892575]
[1760121530322,1.20578022,1233.4,1230.8,0.52119027]
[1760121530623,1.20578022,1233.4,1230.9,0.52119027]
[1760121530918,1.20578022,1233.4,1231.0,0.52119027]
[1760121531224,1.20578022,1233.4,1231.1,0.52119027]
[1760121531419,1.20578022,1233.4,1231.2,0.52119027]
[1760121531621,1.20578022,1233.3,1230.7,0.59892575]
[1760121531819,1.20578022,1233.3,1230.8,0.5212797]
[1760121532120,1.20578022,1233.2,1230.9,0.5212797]
[1760121532320,1.20578022,1233.2,1231.0,0.5212797]
[1760121532520,1.20578022,1233.3,1231.1,0.5212797]
[1760121532723,1.20578022,1233.3,1230.6,0.59892575]
[1760121532922,1.20578022,1233.3,1230.7,0.52139985]
[1760121533120,1.20578022,1233.3,1230.8,0.52139985]
[1760121533319,1.20578022,1233.3,1230.9,0.52139985]
[1760121533518,1.20578022,1233.3,1231.0,0.52139985]
[1760121533822,1.20578022,1233.3,1231.1,0.52139985]
[1760121534120,1.20578022,1233.3,1230.6,0.59892575]
[1760121534320,1.20578022,1233.3,1230.7,0.52144277]
[1760121534521,1.20578022,1233.3,1230.8,0.52144277]
[1760121534721,1.20578022,1233.3,1230.9,0.52144277]
[1760121534921,1.20578022,1233.3,1231.0,0.52144277]
[1760121535124,1.20578022,1233.3,1231.1,0.52144277]
[1760121535424,1.20578022,1233.3,1230.7,0.59892575]
[1760121535625,1.20578022,1233.2,1230.8,0.52162202]
[1760121535824,1.20578022,1233.2,1230.9,0.52162202]
[1760121536120,1.20578022,1233.3,1231.0,0.52162202]
[1760121536324,1.20578022,1233.3,1231.1,0.52162202]
[1760121536518,1.20578022,1233.3,1230.7,0.59892575]
[1760121536726,1.20578022,1233.3,1230.8,0.52171773]
[1760121536920,1.20578022,1233.4,1230.9,0.52171773]
[1760121537123,1.20578022,1233.3,1231.0,0.52171773]
[1760121537324,1.20578022,1233.3,1231.1,0.52182768]
[1760121537524,1.20578022,1233.3,1230.5,0.59892575]
[1760121537725,1.20578022,1233.3,1230.6,0.52182675]
[1760121537924,1.20578022,1233.3,1230.7,0.52182675]
[1760121538126,1.20578022,1233.3,1230.8,0.52182675]
[1760121538423,1.20578022,1233.3,1230.9,0.52182675]
[1760121538627,1.20578022,1233.4,1231.0,0.52182675]
[1760121538920,1.20578022,1233.4,1231.1,0.52182675]
[1760121539126,1.20578022,1233.4,1230.5,0.59892575]
[1760121539326,1.20578022,1233.4,1230.2,0.80786749]
[1760121539529,0.14110177,1233.9,1230.3,1.12159]
[1760121539727,0.14110177,1233.9,1230.4,0.52171692]
[1760121539925,0.14110177,1233.9,1230.5,0.52171692]
[1760121540128,0.14110177,1233.9,1230.6,0.52171692]
[1760121540329,0.14110177,1233.9,1230.7,0.52171692]
[1760121540529,0.14110177,1233.9,1230.8,0.52171692]
[1760121540831,1.20578022,1233.6,1230.9,0.52171692]
[1760121541031,1.20578022,1233.6,1231.0,0.52171692]
[1760121541232,1.20578022,1233.7,1231.1,0.52171692]
[1760121541432,1.20578022,1233.7,1231.2,0.52171692]
[1760121541728,1.20578022,1233.7,1231.3,0.52171692]
[1760121541932,1.20578022,1233.8,1230.8,0.59987308]
[1760121542134,1.20578022,1233.8,1230.9,0.52108263]
[1760121542332,1.20578022,1233.8,1231.0,0.52108263]
[1760121542636,1.20578022,1233.8,1231.1,0.52108263]
[1760121542831,1.20578022,1233.8,1231.2,0.52108263]
[1760121543030,1.20578022,1233.8,1231.3,0.52108263]
[1760121543234,1.20578022,1233.7,1231.4,0.52108263]
[1760121543531,1.20578022,1233.7,1230.5,0.80786749]
[1760121543532,1.20578022,1233.6,1230.9,0.59987308]
[1760121543733,1.20578022,1233.6,1231.0,0.52108648]
[1760121543935,1.20578022,1233.6,1231.1,0.52108648]
[1760121544139,1.34688199,1233.9,1231.2,0.52108648]
[1760121544433,1.34688199,1233.9,1231.3,0.52108648]
[1760121544633,1.34688199,1233.9,1231.4,0.52108648]
[1760121544831,1.34688199,1233.9,1231.5,0.52108648]
[1760121545033,1.34688199,1233.9,1231.6,0.52108648]
[1760121545232,1.34688199,1233.9,1231.1,0.59987308]
[1760121545550,1.34688199,1233.9,1231.2,0.52088258]
[1760121545737,1.34688199,1233.9,1231.3,1.12075566]
[1760121545933,1.34688199,1233.9,1231.4,0.52088258]
[1760121546233,1.20578022,1233.7,1231.5,0.52088258]
[1760121546533,1.20578022,1233.7,1231.6,0.52088258]
[1760121546742,1.20578022,1233.7,1231.1,0.59987308]
[1760121546935,1.20578022,1233.7,1231.2,0.52072978]
[1760121547136,1.20578022,1233.7,1231.3,0.52072978]
[1760121547346,1.20578022,1233.7,1231.4,0.52072978]
[1760121547640,1.20578022,1233.7,1231.5,0.52072978]
[1760121547838,1.20578022,1233.7,1231.6,0.52072978]
[1760121548039,1.20578022,1233.7,1231.1,0.59987308]
[1760121548340,1.20578022,1233.7,1231.2,1.12060122]
[1760121548539,1.20578022,1233.7,1231.3,0.52072814]
[1760121548740,1.20578022,1233.7,1231.4,0.52072814]
[1760121549036,1.20578022,1233.7,1231.5,0.52072814]
[1760121549239,1.20578022,1233.7,1231.1,0.59987308]
[1760121549439,1.20578022,1233.7,1231.2,0.52081274]
[1760121549639,1.20578022,1233.7,1231.3,0.52081274]
[1760121549935,1.20578022,1233.7,1231.4,0.52081274]
[1760121550136,1.20578022,1233.7,1231.5,0.52081274]
[1760121550337,1.20578022,1233.7,1231.6,0.52081274]
[1760121550537,1.20578022,1233.7,1231.1,0.59987308]
[1760121550736,1.20578022,1233.7,1231.2,0.52087081]
[1760121550939,1.20578022,1233.7,1231.3,0.52087081]
[1760121551139,1.20578022,1233.7,1231.4,0.52087081]
[1760121551438,1.20578022,1233.7,1231.5,0.52087081]
[1760121551640,1.20578022,1233.7,1231.6,0.52087081]
[1760121551838,1.20578022,1233.7,1231.1,0.59987308]
[1760121552141,1.20578022,1233.7,1231.2,0.52092808]
[1760121552344,1.20578022,1233.7,1231.3,0.52092808]
[1760121552538,1.20578022,1233.7,1231.4,0.52092808]
[1760121552737,1.20578022,1233.7,1231.5,0.52092808]
[1760121552940,1.20578022,1233.7,1231.6,0.52092808]
[1760121553135,1.20578022,1233.7,1231.1,0.59987308]
[1760121553338,1.20578022,1233.7,1231.2,0.52088316]
[1760121553538,1.20578022,1233.7,1231.3,0.52088316]
[1760121553739,1.20578022,1233.7,1231.4,0.52088316]
[1760121553942,1.20578022,1233.7,1231.5,0.52088316]
[1760121554138,1.20578022,1233.7,1231.6,0.52088316]
[1760121554342,1.20578022,1233.7,1231.1,0.59987308]
[1760121554538,1.20578022,1233.6,1231.2,0.52091146]
[1760121554843,1.20578022,1233.6,1231.3,0.52091146]
[1760121555042,1.20578022,1233.6,1231.4,0.52091146]
[1760121555240,1.20578022,1233.6,1231.5,0.52091146]
[1760121555540,1.20578022,1233.6,1231.6,0.52091146]
[1760121555747,1.20578022,1233.6,1231.1,0.59987308]
[1760121555939,1.20578022,1233.5,1231.2,0.52104355]
[1760121556143,1.20578022,1233.5,1231.3,0.52104355]
[1760121556342,1.20578022,1233.7,1231.4,0.52104355]
[1760121556643,1.20578022,1233.7,1231.5,0.52104355]
[1760121556840,1.20578022,1233.7,1231.6,0.52104355]
[1760121557137,1.20578022,1233.7,1231.7,0.52104355]
[1760121557339,1.20578022,1233.6,1231.3,0.59987308]
[1760121557541,1.20578022,1233.6,1231.4,0.52134037]
[1760121557742,1.20578022,1233.6,1231.5,0.52134037]
[1760121557942,1.20578022,1233.5,1231.6,0.52134037]
[1760121558137,1.20578022,1233.5,1231.7,0.52134037]
[1760121558342,1.20578022,1233.5,1231.3,0.59987308]
[1760121558539,1.20578022,1233.5,1231.4,0.52157285]
[1760121558742,1.20578022,1233.5,1231.5,0.52157285]
[1760121558942,1.20578022,1233.5,1231.6,0.52157285]
[1760121559143,1.20578022,1233.6,1231.7,0.52157285]
[1760121559339,1.20578022,1233.5,1231.2,0.59987308]
[1760121559640,1.20578022,1233.5,1231.3,0.52188528]
[1760121559940,1.20578022,1233.6,1231.4,0.52188528]
[1760121560142,1.20578022,1233.7,1231.5,0.52188528]
[1760121560345,1.20578022,1233.7,1231.6,0.52188528]
[1760121560642,1.20578022,1233.7,1231.7,0.52188528]
[1760121560845,1.20578022,1233.7,1231.8,0.52188528]
[1760121561043,1.20578022,1233.7,1231.3,0.59987308]
[1760121561247,1.20578022,1233.7,1231.4,0.52198293]
[1760121561447,1.20578022,1233.6,1231.5,0.52198293]
[1760121561650,1.20578022,1233.6,1231.6,0.52198293]
[1760121561948,1.20578022,1233.6,1231.7,0.52198293]
[1760121562148,1.20578022,1233.6,1231.8,0.52198293]
[1760121562449,1.20578022,1233.6,1231.3,0.59987308]
[1760121562643,1.20578022,1233.6,1231.4,0.52209886]
[1760121562842,1.20578022,1233.5,1231.5,0.52209886]
[1760121563047,1.20578022,1233.5,1231.6,0.52209886]
[1760121563254,1.20578022,1233.6,1231.7,0.52209886]
[1760121563452,1.20578022,1233.5,1231.3,0.59987308]
[1760121563652,1.20578022,1233.5,1231.4,0.52218938]
[1760121563855,1.20578022,1233.5,1231.5,0.52218938]
[1760121564053,1.20578022,1233.5,1231.6,0.52218938]
[1760121564252,1.20578022,1233.5,1231.7,0.52218938]
[1760121564455,1.20578022,1233.5,1231.2,0.59987308]
[1760121564656,1.20578022,1233.3,1231.3,0.52215572]
[1760121564856,1.20578022,1233.3,1231.4,0.52215572]
[1760121565057,1.20578022,1233.3,1230.9,0.59987308]
[1760121565254,1.20578022,1233.0,1231.0,1.12234436]
[1760121565456,1.20578022,1232.8,1231.1,0.52247128]
[1760121565654,1.20578022,1232.8,1231.2,0.52247128]
[1760121565959,1.20578022,1232.8,1230.8,0.59987308]
[1760121566258,1.20578022,1232.7,1230.9,0.52280896]
[1760121566454,1.20578022,1232.7,1231.0,0.52280896]
[1760121566659,1.20578022,1232.7,1231.1,0.52280896]
[1760121566858,1.20578022,1232.7,1230.7,0.59987308]
[1760121567054,1.20578022,1232.7,1230.8,0.52276149]
[1760121567259,1.20578022,1232.9,1230.9,0.52276149]
[1760121567456,1.20578022,1232.9,1231.0,0.52276149]
[1760121567658,1.20578022,1232.9,1230.5,0.59987308]
[1760121567853,1.20578022,1233.0,1230.6,0.52285101]
[1760121568056,1.20578022,1233.0,1230.7,0.52285101]
[1760121568259,1.20578022,1233.0,1230.8,0.52285101]
[1760121568459,0.14110177,1233.9,1230.9,0.52285101]
[1760121568460,1.20578022,1232.9,1230.9,0.52285101]
[1760121568660,1.20578022,1232.9,1230.4,0.59987308]
[1760121568661,1.20578022,1232.9,1231.0,0.52285101]
[1760121568861,1.20578022,1232.9,1230.4,0.59987308]
[1760121569056,1.20578022,1232.9,1230.5,0.52280115]
[1760121569256,1.20578022,1232.9,1230.6,0.52280115]
[1760121569556,1.20578022,1232.9,1230.7,0.52280115]
[1760121569760,1.20578022,1232.9,1230.8,0.52280115]